Cogmind - Beta 10 X1 @@@ ROGUE MODE // 2020.06.14 @ 00:58:07 Player: Decinym Result: Destroyed by Warlord with Compact HERF Cannon Performance ------------- Evolutions (5) 2500 Regions Visited (17) 3400 Robots Destroyed (149) 745 Value Destroyed (4277) 4277 Prototype IDs (55) 1100 Alien Tech Used (0) 0 Bonus (1012) 1012 TOTAL SCORE: 13034 Bonus ------- High Alert Combat Kills 346 Follower Combat Kills 1355 Aligned with FarCom 300 Met Data Miner 300 Met Warlord at Base 500 MAIN.C Attacked Warlord 500 Friendly Fire -2289 Cogmind --------- Core Integrity 0/1000 Matter 127/300 Energy 99/100 System Corruption 15% Temperature Cool (0) Movement Core (50) Location -5/Warlord Parts ------- > --- POWER (1) -------- (None) > --- PROPULSION (5) --- (None) > --- UTILITY (9) ------ Target Analyzer > --- WEAPON (2) ------- Spear > --- INVENTORY (4) ---- Hacking Suite Lightning Gun Spear Peak State ------------ > --- POWER ------------ Cold Fusion Reactor > --- PROPULSION ------- Flexi-carbon Leg Flexi-carbon Leg Armored Leg Enhanced Biometal Leg Enhanced Biometal Leg > --- UTILITY ---------- Advanced Heat Sink Experimental Cooling System Large Storage Unit Large Storage Unit Large Storage Unit Target Analyzer Hardened Medium Armor Plating Hardened Medium Armor Plating Makeshift Armor Plating > --- WEAPON ----------- Vortex Driver Vortex Driver > --- INVENTORY -------- Micro Nuclear Core Improved Propulsion Shielding Makeshift Armor Plating Hacking Suite Minesniffer Drone Bay Minesniffer Drone Bay Minesniffer Drone Bay Lightning Gun Makeshift Laser Force Rifle Vortex Rifle EM Pulse Cannon Heavy Phase Cannon Heavy Missile Launcher Katana Spear Spear Fire Trap [Rating: 95] Favorites ----------- Power Cold Fusion Reactor Engine Improved Deuterium Engine Power Core Micro Nuclear Core Reactor Cold Fusion Reactor Propulsion Improved Carbon-fiber Leg Treads Light Treads Leg Improved Carbon-fiber Leg Wheel Wheel Hover Unit Combat Airjet Utility Large Storage Unit Device Advanced Heat Sink Storage Large Storage Unit Processor Advanced Signal Interpreter Hackware Hacking Suite Protection Hardened Medium Armor Plating Weapon Gatling Laser Energy Gun Gatling Laser Energy Cannon Heavy Phase Cannon Ballistic Gun Gauss Rifle Ballistic Cannon Advanced Assault Cannon Launcher Heavy Missile Launcher Special Weapon Field Lobotomy Kit Slashing Weapon Katana Piercing Weapon Spear Build | -11 -10 -10 -10 -9 -8 -7 -7 -7 -7 -6 -6 -6 -6 -5 -5 -5 -5 ------- Run | Scr Mat Min Exi Min Mat Fac Low Low Dat Pro Fac Was Fac Fac Upp Upp War Slots Evolved 10 | . . . . . 4 2 . . . . 2 . . 2 . . . Power . | . . . . . . . . . . . . . . . . . . Propulsion 3 | . . . . . 1 1 . . . . . . . 1 . . . Utility 7 | . . . . . 3 1 . . . . 2 . . 1 . . . Weapon . | . . . . . . . . . . . . . . . . . . Parts Attached 190 | . 8 8 3 1 46 37 7 9 . 18 11 4 . . 10 2 26 Power 17 | . 1 1 . . 5 3 1 1 . 2 2 . . . . . 1 Engine 10 | . 1 1 . . 3 2 1 1 . . 1 . . . . . . Core 5 | . . . . . 2 1 . . . 1 . . . . . . 1 Reactor 2 | . . . . . . . . . . 1 1 . . . . . . Propulsion 44 | . 3 2 2 . 16 9 . . . 3 1 1 . . 3 1 3 Treads 1 | . . . . . 1 . . . . . . . . . . . . Leg 32 | . 3 2 . . 9 8 . . . 3 . . . . 3 1 3 Wheel 4 | . . . 1 . 1 . . . . . 1 1 . . . . . Hover 7 | . . . 1 . 5 1 . . . . . . . . . . . Flight . | . . . . . . . . . . . . . . . . . . Utility 55 | . 1 1 1 1 11 9 2 . . 10 3 3 . . 5 . 8 Device 24 | . 1 1 . . 5 3 1 . . 4 2 . . . 1 . 6 Storage 8 | . . . 1 1 3 . . . . 1 . . . . 1 . 1 Processor 2 | . . . . . . . 1 . . . . . . . 1 . . Hackware 3 | . . . . . 1 . . . . 1 1 . . . . . . Protection 18 | . . . . . 2 6 . . . 4 . 3 . . 2 . 1 Artifact . | . . . . . . . . . . . . . . . . . . Weapon 74 | . 3 4 . . 14 16 4 8 . 3 5 . . . 2 1 14 Energy Gun 34 | . 3 1 . . 6 7 3 4 . 2 2 . . . . . 6 Energy Cannon 10 | . . . . . 2 1 1 . . . 1 . . . 1 . 4 Ballistic Gun 3 | . . . . . 1 2 . . . . . . . . . . . Ballistic Cannon 2 | . . . . . . 2 . . . . . . . . . . . Launcher 17 | . . 3 . . 3 4 . 1 . 1 2 . . . 1 1 1 Special Weapon 1 | . . . . . . . . 1 . . . . . . . . . Impact Weapon . | . . . . . . . . . . . . . . . . . . Slashing Weapon 3 | . . . . . 2 . . . . . . . . . . . 1 Piercing Weapon 4 | . . . . . . . . 2 . . . . . . . . 2 Special Melee Weapon . | . . . . . . . . . . . . . . . . . . Unidentified Prototypes 18 | . . . . . 4 2 . . . 4 1 . . . . . 7 Parts Lost 51 | . 1 2 . . 8 8 . . . 5 5 . . 1 . 1 20 Power 5 | . . . . . 2 . . . . . 1 . . . . . 2 Propulsion 11 | . . 1 . . 1 . . . . 2 1 . . . . 1 5 Utility 11 | . . . . . 1 2 . . . 2 . . . . . . 6 Weapon 24 | . 1 1 . . 4 6 . . . 1 3 . . 1 . . 7 Highest Loss Streak 12 | . 1 1 . . 8 2 . . . 4 2 . . 1 . 1 12 Average Slot Usage (%) 93 | . 94 90 79 71 89 97 99 100 100 93 82 85 100 83 96 99 92 Engine 4 | . 14 14 14 14 7 4 5 7 7 5 . . . . . . . Reactor 1 | . . . . . . . . . . . 2 6 6 5 5 5 4 Leg 23 | . 28 27 14 . 14 28 30 30 30 28 22 18 13 11 16 20 25 Wheel 2 | . . . 3 14 3 . . . . . 3 7 13 11 11 7 . Hover 1 | . . . 10 14 6 . . . . . . . . . . . . Device 7 | . 11 14 14 2 7 9 7 7 7 5 5 1 . . 3 5 8 Storage 18 | . 14 14 14 26 18 23 23 23 23 23 20 20 20 17 14 11 12 Processor 2 | . . . . . . . 5 7 7 3 . . . . . 5 5 Hackware 2 | . . . . . 9 2 . . . 1 5 6 6 5 5 5 2 Protection 9 | . . . . . 5 8 8 7 7 7 6 10 26 23 25 23 17 Energy Gun 9 | . 21 11 4 . 11 9 14 13 15 14 6 13 13 6 5 1 . Energy Cannon 1 | . . . . . . 1 . . . . 2 . . . . 5 5 Launcher 1 | . . 8 4 . . 1 . . . . 1 . . . 3 3 3 Naked Turns . | . . . . . . . . . . . . . . . . . . Heaviest Build 114 | 11 15 16 28 29 54 77 70 69 67 74 72 84 84 84 92 90 114 Greatest Support 116 | 20 20 20 22 10 70 100 86 86 86 86 84 20 20 20 28 74 116 Greatest Overweight (x) 8 | . . 1 2 2 3 1 . . . 1 7 8 4 4 4 8 1 Average Overweight (x) 1 | . . . . 2 . . . . . . 3 4 4 4 3 2 . Largest Inventory Capacity 22 | . 6 6 10 14 20 20 20 20 20 20 16 16 16 16 16 16 22 Average Capacity 16 | . 6 6 9 13 15 20 20 20 20 19 16 16 16 16 16 16 17 Most Carried 20 | . 6 6 10 12 20 20 20 20 20 20 15 10 10 10 12 13 19 Average Carried 14 | . 5 5 7 11 13 19 19 19 20 18 10 10 10 10 11 12 15 Final Capacity 20 | 6 6 6 10 14 20 20 20 20 20 16 16 16 16 16 16 16 4 Final Carried 20 | 6 6 6 10 12 20 20 18 20 20 15 10 10 10 10 12 13 3 Class Distribution -------------------- 44% | Scavenger-Mutant 44% | Hauler-Mutant 11% | Mutant Dominant Class ---------------- Scavenger-Mutant | -10/Materials Scavenger-Mutant | -10/Mines Scavenger-Mutant | -10/Exiles Mutant | -9/Mines Mutant | -8/Materials Hauler-Mutant | -7/Factory Hauler-Mutant | -7/Lower Caves Hauler-Mutant | -7/Lower Caves Hauler-Mutant | -7/Data Miner Hauler-Mutant | -6/Proximity Caves Scavenger-Mutant | -6/Factory Scavenger-Mutant | -6/Waste Scavenger-Mutant | -6/Factory Scavenger-Mutant | -5/Factory Scavenger-Mutant | -5/Upper Caves Scavenger-Mutant | -5/Upper Caves Scavenger-Mutant | -5/Warlord Resources | -11 -10 -10 -10 -9 -8 -7 -7 -7 -7 -6 -6 -6 -6 -5 -5 -5 -5 ----------- Run | Scr Mat Min Exi Min Mat Fac Low Low Dat Pro Fac Was Fac Fac Upp Upp War Matter Collected 4644 | 200 96 215 20 20 531 528 54 190 . 387 1564 497 . . 114 101 127 Remotely . | . . . . . . . . . . . . . . . . . . Salvage Created 5017 | . 378 392 . . 775 1544 277 126 . 21 1062 . . . . 379 63 Parts 219 | . 29 17 . . 40 68 7 1 . 2 36 . . . . 19 . Haulers Intercepted 5 | . . . . . 3 . . . . . 2 . . . . . . Recyclers Shooed 5 | . . 1 . . . 1 . . . . 2 . 1 . . . . Parts Field Recycled . | . . . . . . . . . . . . . . . . . . Retrieved Matter . | . . . . . . . . . . . . . . . . . . Parts Self-Destructed 146 | . . . . . . . 4 5 . 6 . . . . 9 34 88 Prevented 32 | . . . . . . . . . . 2 . . . . . . 30 Kills | -11 -10 -10 -10 -9 -8 -7 -7 -7 -7 -6 -6 -6 -6 -5 -5 -5 -5 ------- Run | Scr Mat Min Exi Min Mat Fac Low Low Dat Pro Fac Was Fac Fac Upp Upp War Combat Hostiles Destroyed 101 | . 8 13 . . 18 27 3 3 . 1 10 . . . . 17 1 Melee 1 | . . . . . 1 . . . . . . . . . . . . Guns 41 | . 8 . . . 8 15 3 2 . 1 4 . . . . . . Cannons 10 | . . . . . 1 3 . . . . 2 . . . . 3 1 AOE 44 | . . 13 . . 7 8 . . . . 2 . . . . 14 . Classes Destroyed 21 | . 7 2 . . 4 1 1 2 . . . . . . . 1 3 Worker 14 | . 1 3 . . 3 3 . . . . 4 . . . . . . Builder 5 | . . 2 . . . 2 . . . . 1 . . . . . . Tunneler 3 | . 1 . . . . 2 . . . . . . . . . . . Hauler 5 | . . . . . 3 . . . . . 2 . . . . . . Recycler 11 | . 1 3 . . 1 4 . . . . 2 . . . . . . Operator 2 | . 1 . . . . 1 . . . . . . . . . . . Drone 1 | . . . . . . . . . . . . . . . . . 1 Watcher 4 | . 1 . . . 1 1 . . . . 1 . . . . . . Swarmer 35 | . 3 . . . 4 11 . . . 1 4 . . . . 12 . Grunt 25 | . 5 2 . . 7 5 2 . . . 3 . . . . 1 . Brawler 1 | . . . . . . . 1 . . . . . . . . . . Duelist 1 | . . . . . 1 . . . . . . . . . . . . Sentry 11 | . . . . . 3 6 . . . . 1 . . . . 1 . Hunter 9 | . . . . . 3 3 . . . . 1 . . . . 2 . Programmer 3 | . . . . . . 2 . . . . 1 . . . . . . Behemoth 1 | . . . . . . . . . . . . . . . . 1 . Demented 1 | . . . . . . . . . . . . . . . . . 1 Master Thief 1 | . . . . . . . . 1 . . . . . . . . . Assembled 11 | . . 11 . . . . . . . . . . . . . . . Thug 1 | . . . . . . . . 1 . . . . . . . . . Savage 2 | . . . . . . . 2 . . . . . . . . . . Mutant 1 | . . . . . . . . 1 . . . . . . . . . Knight 1 | . . . . . . . . . . . . . . . . . 1 Best Kill Streak 9 | . 4 7 . . 9 5 3 1 . 1 5 . . . . 5 1 Combat Bots Only 7 | . 3 7 . . 6 5 3 1 . 1 4 . . . . 5 1 Max Kills in Single Turn 4 | . 2 3 . . 4 3 2 1 . 1 1 . . . . 3 1 Gunslinging 1 | . 1 . . . . . . . . . . . . . . . . Exploded 3 | . . 3 . . 3 2 . . . . 1 . . . . 3 . Melee 1 | . . . . . 1 . . . . . . . . . . . . Uniques/NPCs Destroyed . | . . . . . . . . . . . . . . . . . . Combat | -11 -10 -10 -10 -9 -8 -7 -7 -7 -7 -6 -6 -6 -6 -5 -5 -5 -5 -------- Run | Scr Mat Min Exi Min Mat Fac Low Low Dat Pro Fac Was Fac Fac Upp Upp War Damage Taken 11239 | . 356 429 . . 1457 2199 13 304 . 668 1030 30 . 146 164 453 3990 Core 1785 | . 86 123 . . 270 136 . 24 . 12 103 10 . 14 23 30 954 Absorbed by Shields 65 | . . . . . . 65 . . . . . . . . . . . Core Remaining (%) 65 | 100 . . . 16 50 . . . . 75 . . 86 . . . . Volleys Fired 394 | . 41 22 . . 56 80 9 11 . 16 78 2 1 4 13 23 38 Largest 2 | . 2 1 . . 2 2 2 2 . 2 2 2 2 1 1 2 2 Hottest 250 | . 115 65 . . 250 160 160 160 . 160 130 130 130 80 80 178 200 Shots Fired 561 | . 73 22 . . 81 133 16 15 . 26 95 4 2 4 13 31 46 Gun 386 | . 73 8 . . 71 102 16 9 . 21 43 4 2 4 13 7 13 Cannon 102 | . . . . . 1 19 . . . . 39 . . . . 13 30 Launcher 72 | . . 14 . . 9 12 . 5 . 5 13 . . . . 11 3 Special 1 | . . . . . . . . 1 . . . . . . . . . Kinetic 37 | . 16 . . . 5 16 . . . . . . . . . . . Thermal 311 | . 57 8 . . 51 89 16 9 . 15 7 2 1 4 13 20 19 Explosive 46 | . . 14 . . 9 6 . . . . 3 . . . . 11 3 Electromagnetic 142 | . . . . . 16 22 . 5 . 11 85 2 1 . . . . Entropic 24 | . . . . . . . . . . . . . . . . . 24 Robot Hit Streak 25 | . 6 7 . . 10 19 6 25 . 3 12 3 2 3 2 9 17 Robot Miss Streak 7 | . 5 3 . . 3 6 5 1 . 7 3 1 . 1 4 2 2 Penetration Max 1 | . . . . . 1 . . . . . . . . . . . 1 Secondary Targets 4 | . 2 . . . 1 1 . . . . . . . . . . . Max Gunslinging Chain 1 | . 1 . . . 1 1 . . . . . . . . . . . Shots Hit Robots 396 | . 41 13 . . 52 106 11 12 . 14 64 2 2 2 5 23 49 Core Hits 302 | . 19 33 . . 54 83 13 8 . 8 35 . 1 1 3 24 20 Critical Hits 9 | . . . . . . . . . . . 3 . . . . 2 4 Critical Kills 2 | . . . . . . . . . . . 1 . . . . 1 . Critical Parts Destroyed 5 | . . . . . . . . . . . 2 . . . . 1 2 Melee Attacks 22 | . . . . . 2 . . 3 . . . . . . . . 17 Impact . | . . . . . . . . . . . . . . . . . . Slashing 10 | . . . . . 2 . . . . . . . . . . . 8 Piercing 12 | . . . . . . . . 3 . . . . . . . . 9 Sneak Attacks . | . . . . . . . . . . . . . . . . . . Combat Hostiles . | . . . . . . . . . . . . . . . . . . Follow-up Attacks 4 | . . . . . . . . . . . . . . . . . 4 Damage Inflicted 15474 | . 527 941 . . 2512 2903 223 334 . 487 2203 27 41 48 247 1882 3099 Guns 5411 | . 527 96 . . 896 1566 223 207 . 264 699 27 41 48 247 169 401 Cannons 3083 | . . . . . 59 282 . . . . 574 . . . . 359 1809 Explosions 6546 | . . 845 . . 1523 1055 . 127 . 223 930 . . . . 1354 489 Melee 434 | . . . . . 34 . . . . . . . . . . . 400 Ramming . | . . . . . . . . . . . . . . . . . . Kinetic 330 | . 81 . . . 91 158 . . . . . . . . . . . Thermal 5321 | . 446 96 . . 680 1687 223 207 . 375 275 25 24 48 247 528 460 Explosive 4973 | . . 845 . . 1496 454 . . . . 335 . . . . 1354 489 Electromagnetic 2666 | . . . . . 211 604 . 127 . 112 1593 2 17 . . . . Impact . | . . . . . . . . . . . . . . . . . . Slashing 226 | . . . . . 34 . . . . . . . . . . . 192 Piercing 208 | . . . . . . . . . . . . . . . . . 208 Entropic 1750 | . . . . . . . . . . . . . . . . . 1750 Highest Corruption 14 | . . 2 2 2 . 4 4 5 5 5 3 3 3 2 3 3 14 Average Corruption 3 | . . 2 2 2 . 1 4 4 5 5 2 3 3 2 2 3 8 Corruption Purged . | . . . . . . . . . . . . . . . . . . Effects 116 | . . 1 3 2 . 5 12 21 4 20 6 4 1 1 9 7 20 Message Errors 31 | . . . 2 . . . 2 11 1 6 2 1 . 1 1 3 1 Matter Fused 21 | . . . . . . . 4 4 1 3 . 2 1 . 4 1 1 Heat Flow Errors 11 | . . 1 . . . . 3 . . 2 2 1 . . 1 1 . Energy Discharges 14 | . . . . . . 1 . 2 1 5 . . . . 3 . 2 Parts Rejected 2 | . . . . . . 1 . . . . . . . . . . 1 Data Loss (minor) 16 | . . . 1 2 . 1 3 3 . 2 1 . . . . 2 1 Data Loss (major) 2 | . . . . . . . . . 1 1 . . . . . . . Misfires 1 | . . . . . . . . . . . . . . . . . 1 Alerts 2 | . . . . . . . . . . . . . . . . . 2 Misdirections 2 | . . . . . . . . . . . . . . . . . 2 Targeting Errors 13 | . . . . . . 2 . . . 1 1 . . . . . 9 Weapon Failures 1 | . . . . . . . . 1 . . . . . . . . . Overload Shots . | . . . . . . . . . . . . . . . . . . Overflow Damage 328 | . . 33 . . 55 70 . . . 45 70 . . . . 8 47 Projectiles 69 | . . . . . . . . . . . 23 . . . . . 46 Explosions 259 | . . 33 . . 55 70 . . . 45 47 . . . . 8 1 Melee . | . . . . . . . . . . . . . . . . . . Knockbacks . | . . . . . . . . . . . . . . . . . . Impact . | . . . . . . . . . . . . . . . . . . Kinetic . | . . . . . . . . . . . . . . . . . . Secondary . | . . . . . . . . . . . . . . . . . . Self-Inflicted Damage 783 | . . 167 . . 81 134 . 106 . 68 106 . . . . 45 76 Shots 28 | . . 7 . . 4 3 . 4 . 1 5 . . . . 2 2 Rammed . | . . . . . . . . . . . . . . . . . . Targets Rammed . | . . . . . . . . . . . . . . . . . . Kicked . | . . . . . . . . . . . . . . . . . . Crushed . | . . . . . . . . . . . . . . . . . . Highest Temperature 368 | . 96 253 . . 291 169 367 277 . 272 186 75 78 178 368 339 160 Average Temperature 81 | . 33 119 . . 117 53 137 117 . 100 43 36 42 92 125 120 69 Received Heat Transfer 1241 | . 108 103 . . 297 387 9 40 . 60 129 . . 27 12 48 21 Effects 7 | . . . . . . . 1 . . 4 . . . . 1 1 . Energy Bleed 1 | . . . . . . . . . . . . . . . . 1 . Interference 4 | . . . . . . . . . . 4 . . . . . . . Matter Decay 1 | . . . . . . . 1 . . . . . . . . . . Damage (minor) 1 | . . . . . . . . . . . . . . . 1 . . Siege Activations . | . . . . . . . . . . . . . . . . . . Robots Corrupted 7 | . . . . . 1 1 . 1 . . 4 . . . . . . Combat Hostiles 5 | . . . . . 1 1 . 1 . . 2 . . . . . . Parts Fried 23 | . . . . . 2 2 . 7 . . 12 . . . . . . Impact Corruptions . | . . . . . . . . . . . . . . . . . . Robots Melted 1 | . . . . . . . 1 . . . . . . . . . . Combat Hostiles . | . . . . . . . . . . . . . . . . . . Parts Melted 21 | . 2 1 . . 3 13 2 . . . . . . . . . . Heat Transferred 10147 | . 1125 222 . . 1695 3443 500 475 . 625 435 37 37 74 370 629 480 Parts Sabotaged . | . . . . . . . . . . . . . . . . . . Parts Stolen 9 | . . . . . . . 1 . . 4 . . . . 4 . . Parts Stripped . | . . . . . . . . . . . . . . . . . . Power Chain Reactions 7 | . . . . . . 2 . . . 1 4 . . . . . . Missiles Intercepted . | . . . . . . . . . . . . . . . . . . Alert | -11 -10 -10 -10 -9 -8 -7 -7 -7 -7 -6 -6 -6 -6 -5 -5 -5 -5 ------- Run | Scr Mat Min Exi Min Mat Fac Low Low Dat Pro Fac Was Fac Fac Upp Upp War Peak Influence 624 | . 243 100 . . 402 624 . . . . 274 127 185 235 . . . Average Influence 215 | . 126 77 . . 215 352 . . . . 182 77 86 144 . . . Maximum Alert Level 2 | . 1 . . . 2 2 . . . . 1 . . 1 . . . Low Security (%) 51 | . 64 100 . 100 37 23 . . . . 40 100 100 80 . . . Level 1 33 | . 35 . . . 62 33 . . . . 59 . . 19 . . . Level 2 15 | . . . . . . 42 . . . . . . . . . . . Level 3 . | . . . . . . . . . . . . . . . . . . Level 4 . | . . . . . . . . . . . . . . . . . . Level 5 . | . . . . . . . . . . . . . . . . . . High Security . | . . . . . . . . . . . . . . . . . . Max Security . | . . . . . . . . . . . . . . . . . . Squads Dispatched 20 | . 2 . . . 1 11 . . . . 5 . . . . 1 . Investigation 8 | . 1 . . . 1 4 . . . . 2 . . . . . . Extermination 3 | . . . . . . 2 . . . . 1 . . . . . . Reinforcement 5 | . 1 . . . . 2 . . . . 2 . . . . . . Assault 2 | . . . . . . 1 . . . . . . . . . 1 . Garrison 2 | . . . . . . 2 . . . . . . . . . . . Intercept . | . . . . . . . . . . . . . . . . . . Construction Impeded 1 | . . . . . . . . . . . 1 . . . . . . Haulers Reinforced . | . . . . . . . . . . . . . . . . . . Stealth | -11 -10 -10 -10 -9 -8 -7 -7 -7 -7 -6 -6 -6 -6 -5 -5 -5 -5 --------- Run | Scr Mat Min Exi Min Mat Fac Low Low Dat Pro Fac Was Fac Fac Upp Upp War Distress Signals 7 | . . 2 . . 2 2 . . . . 1 . . . . . . Communications Jammed . | . . . . . . . . . . . . . . . . . . Distress Signals . | . . . . . . . . . . . . . . . . . . Times Spotted 179 | . 12 15 . . 23 40 4 5 . 10 21 3 2 1 11 26 6 Peak Tracking Total 9 | . 3 6 . . 6 5 3 1 . 4 4 2 1 1 4 9 4 Tactical Retreats 8 | . . 2 . . . 2 . . . . 2 . . . . 1 1 Traps | -11 -10 -10 -10 -9 -8 -7 -7 -7 -7 -6 -6 -6 -6 -5 -5 -5 -5 ------- Run | Scr Mat Min Exi Min Mat Fac Low Low Dat Pro Fac Was Fac Fac Upp Upp War Traps Triggered 7 | . 4 . . . . 2 . . . . 1 . . . . . . Indirectly . | . . . . . . . . . . . . . . . . . . Trap Hack Attempts . | . . . . . . . . . . . . . . . . . . Triggered . | . . . . . . . . . . . . . . . . . . Disarmed . | . . . . . . . . . . . . . . . . . . Reprogrammed . | . . . . . . . . . . . . . . . . . . Reused 1 | . . . . . . . . . . . . . . . . . 1 Traps Extracted . | . . . . . . . . . . . . . . . . . . Installed 2 | . . . . . . . . . . . . . . . . . 2 Triggered 11 | . . . . . . . . . . 1 . . . . . 3 7 Machines | -11 -10 -10 -10 -9 -8 -7 -7 -7 -7 -6 -6 -6 -6 -5 -5 -5 -5 ---------- Run | Scr Mat Min Exi Min Mat Fac Low Low Dat Pro Fac Was Fac Fac Upp Upp War Machines Disabled 14 | . . . . . 2 3 . 1 . . 3 . . 2 . 2 1 Max in Single Turn 2 | . . . . . 2 2 . 1 . . 2 . . . . . 1 Garrison Access 2 | . . . . . . 2 . . . . . . . . . . . Machines Sabotaged . | . . . . . . . . . . . . . . . . . . Garrisons Compromised . | . . . . . . . . . . . . . . . . . . Overloaded Fab Kills . | . . . . . . . . . . . . . . . . . . Fab Network Shutdowns . | . . . . . . . . . . . . . . . . . . Hacking | -11 -10 -10 -10 -9 -8 -7 -7 -7 -7 -6 -6 -6 -6 -5 -5 -5 -5 --------- Run | Scr Mat Min Exi Min Mat Fac Low Low Dat Pro Fac Was Fac Fac Upp Upp War Machines Accessed 29 | . 2 . 2 . 3 12 1 1 4 . 1 . 1 1 . . 1 Terminals 9 | . 2 . . . 1 4 . . . . 1 . . 1 . . . Fabricators 3 | . . . . . . 2 . . . . . . 1 . . . . Repair Stations 2 | . . . . . 1 1 . . . . . . . . . . . Recycling Units . | . . . . . . . . . . . . . . . . . . Scanalyzers 2 | . . . . . . 2 . . . . . . . . . . . Garrison Access 4 | . . . . . 1 3 . . . . . . . . . . . Total Hacks 92 | . 3 . 6 . 12 32 1 1 27 . 4 . 4 1 . . 1 Successful 57 | . 1 . 6 . 7 10 1 1 27 . 2 . . 1 . . 1 Failed 35 | . 2 . . . 5 22 . . . . 2 . 4 . . . . Catastrophic 6 | . . . . . . 6 . . . . . . . . . . . Database Lockouts . | . . . . . . . . . . . . . . . . . . Manual 17 | . 3 . 1 . 6 4 . . . . . . . 1 . . 2 Terminals 26 | . 3 . . . 3 15 . . . . 4 . . 1 . . . Fabricators 8 | . . . . . . 4 . . . . . . 4 . . . . Repair Stations 8 | . . . . . 6 2 . . . . . . . . . . . Recycling Units . | . . . . . . . . . . . . . . . . . . Scanalyzers 4 | . . . . . . 4 . . . . . . . . . . . Garrison Access 10 | . . . . . 3 7 . . . . . . . . . . . Terminal Hacks 46 | . 1 . 6 . 2 4 1 1 27 . 2 . . 1 . . 1 Record 17 | . . . 5 . . . . . 11 . 1 . . . . . . Part Schematic 9 | . . . . . . 2 . . 7 . . . . . . . . Robot Schematic 7 | . . . . . . 1 . . 6 . . . . . . . . Prototype ID Bank 4 | . . . . . . . . . 3 . 1 . . . . . . Open Door 3 | . . . . . . . 1 1 . . . . . . . . 1 Level Access Points 1 | . . . . . 1 . . . . . . . . . . . . Branch Access Points 3 | . 1 . . . . 1 . . . . . . . 1 . . . Unreport Threat 1 | . . . . . 1 . . . . . . . . . . . . EX-Prototype ID Bank 1 | . . . 1 . . . . . . . . . . . . . . Fabricator Hacks 1 | . . . . . . 1 . . . . . . . . . . . Build 1 | . . . . . . 1 . . . . . . . . . . . Repair Station Hacks 5 | . . . . . 4 1 . . . . . . . . . . . Scan Component 3 | . . . . . 2 1 . . . . . . . . . . . Repair 2 | . . . . . 2 . . . . . . . . . . . . Recycling Unit Hacks . | . . . . . . . . . . . . . . . . . . Scanalyzer 2 | . . . . . . 2 . . . . . . . . . . . Insert Component 2 | . . . . . . 2 . . . . . . . . . . . Garrison Access Hacks 1 | . . . . . . 1 . . . . . . . . . . . Seal Access 1 | . . . . . . 1 . . . . . . . . . . . Unauthorized Hacks 2 | . . . . . 1 1 . . . . . . . . . . . Terminals 1 | . . . . . . 1 . . . . . . . . . . . Botnet 1 | . . . . . . 1 . . . . . . . . . . . Fabricators . | . . . . . . . . . . . . . . . . . . Repair Stations . | . . . . . . . . . . . . . . . . . . Recycling Units . | . . . . . . . . . . . . . . . . . . Scanalyzers . | . . . . . . . . . . . . . . . . . . Garrison Access 1 | . . . . . 1 . . . . . . . . . . . . Watchers 1 | . . . . . 1 . . . . . . . . . . . . Data Cores Recovered 1 | . . . . . . . . . . . . . . 1 . . . Used 1 | . . . . . . . . . . . . . . 1 . . . Hacking Detections 17 | . 1 . . . 2 12 . . . . 1 . 1 . . . . Full Trace Events 5 | . . . . . 1 4 . . . . . . . . . . . Feedback Events . | . . . . . . . . . . . . . . . . . . Feedback Blocked . | . . . . . . . . . . . . . . . . . . Robot Schematics Acquired 7 | . . . . . . 1 . . 6 . . . . . . . . Robots Built 3 | . . . . . . 3 . . . . . . . . . . . Matter 252 | . . . . . . 252 . . . . . . . . . . . Time 67 | . . . . . . 67 . . . . . . . . . . . Total Robot Build Rating 12 | . . . . . . 12 . . . . . . . . . . . Part Schematics Acquired 9 | . . . . . . 2 . . 7 . . . . . . . . Parts Built . | . . . . . . . . . . . . . . . . . . Matter . | . . . . . . . . . . . . . . . . . . Time . | . . . . . . . . . . . . . . . . . . Total Part Build Rating . | . . . . . . . . . . . . . . . . . . Parts Repaired 2 | . . . . . 2 . . . . . . . . . . . . Time 98 | . . . . . 98 . . . . . . . . . . . . Parts Recycled . | . . . . . . . . . . . . . . . . . . Recycled Matter . | . . . . . . . . . . . . . . . . . . Retrieved Matter . | . . . . . . . . . . . . . . . . . . Retrieved Components . | . . . . . . . . . . . . . . . . . . Parts Scanalyzed 1 | . . . . . . 1 . . . . . . . . . . . Part Schematics Acquired . | . . . . . . . . . . . . . . . . . . Parts Damaged . | . . . . . . . . . . . . . . . . . . Bothacking | -11 -10 -10 -10 -9 -8 -7 -7 -7 -7 -6 -6 -6 -6 -5 -5 -5 -5 ------------ Run | Scr Mat Min Exi Min Mat Fac Low Low Dat Pro Fac Was Fac Fac Upp Upp War Used RIF Installer . | . . . . . . . . . . . . . . . . . . Robots Hacked . | . . . . . . . . . . . . . . . . . . Non-combat . | . . . . . . . . . . . . . . . . . . Combat . | . . . . . . . . . . . . . . . . . . Robot Hacks Applied . | . . . . . . . . . . . . . . . . . . Relay Couplers Released 2 | . . . . . . 2 . . . . . . . . . . . Machine Destruction 2 | . . . . . . 2 . . . . . . . . . . . Robots Rewired 6 | . . . . . . . . . . 1 . . . . . 1 4 Allies Hacked 1 | . . . . . . . . . . . 1 . . . . . . Hacks Repelled . | . . . . . . . . . . . . . . . . . . Allies | -11 -10 -10 -10 -9 -8 -7 -7 -7 -7 -6 -6 -6 -6 -5 -5 -5 -5 -------- Run | Scr Mat Min Exi Min Mat Fac Low Low Dat Pro Fac Was Fac Fac Upp Upp War Total Allies 30 | . . . . . . 3 . 1 . 2 . 19 . . . 1 4 Largest Group 18 | . . . . . . 3 . 1 1 2 1 18 13 12 12 7 4 Highest-Rated Group 668 | . . . . . . 60 . 64 64 158 76 668 599 553 553 349 182 Highest-Rated Ally 99 | . . . . . . 20 . 64 64 94 76 99 99 99 99 99 99 Total Orders . | . . . . . . . . . . . . . . . . . . Ally Attacks 272 | . . . . . . 7 . . . 35 12 81 36 9 42 36 14 Total Damage 10382 | . . . . . . 144 . . . 679 496 4098 854 403 1577 1740 391 Kills 49 | . . . . . . . . . . 4 4 11 3 2 11 13 1 Allies Corrupted 5 | . . . . . . . . . . . 1 . . . . . 4 Allies Melted 2 | . . 1 . . . . 1 . . . . . . . . . . Field Lobotomies 1 | . . . . . . . . 1 . . . . . . . . . Intel | -11 -10 -10 -10 -9 -8 -7 -7 -7 -7 -6 -6 -6 -6 -5 -5 -5 -5 ------- Run | Scr Mat Min Exi Min Mat Fac Low Low Dat Pro Fac Was Fac Fac Upp Upp War Robot Analysis Total . | . . . . . . . . . . . . . . . . . . Derelict Logs Recovered 8 | . . . . 1 . . 2 1 . 1 . . . . 2 1 . Drone Launches 27 | . . . . . . . . . . . . . . . . . 27 Drone Recoveries 15 | . . . . . . . . . . . . . . . . . 15 Exploration | -11 -10 -10 -10 -9 -8 -7 -7 -7 -7 -6 -6 -6 -6 -5 -5 -5 -5 ------------- Run | Scr Mat Min Exi Min Mat Fac Low Low Dat Pro Fac Was Fac Fac Upp Upp War Turns Passed 9995 | . 450 327 420 139 710 1804 631 868 96 731 753 587 143 102 655 371 1208 Spaces Moved 6824 | 1 257 161 412 134 384 1303 512 700 84 491 367 405 109 75 493 214 722 Core 14 | . . . . . . . . . . . . . . . . . 14 Treads . | . . . . . . . . . . . . . . . . . . Legs 4737 | 1 257 161 90 . 147 1303 512 700 84 491 161 . . . 1 121 708 Wheels 1737 | . . . 100 134 123 . . . . . 206 405 109 75 492 93 . Hover 336 | . . . 222 . 114 . . . . . . . . . . . . Flight . | . . . . . . . . . . . . . . . . . . Fastest Speed 50 | 120 120 120 90 100 52 103 115 115 115 115 122 120 120 120 120 120 50 Average Speed 117 | 120 120 121 99 100 96 111 115 115 115 123 135 129 120 120 120 139 126 Slowest Speed 210 | 120 120 150 150 100 160 146 115 115 115 153 153 160 120 120 210 160 150 Overloaded Moves . | . . . . . . . . . . . . . . . . . . Propulsion Burnouts . | . . . . . . . . . . . . . . . . . . Robots Hopped . | . . . . . . . . . . . . . . . . . . Cave-ins Triggered . | . . . . . . . . . . . . . . . . . . Exploration Rate (%) 47 | 2 49 43 71 35 33 38 72 79 70 61 13 96 6 3 59 49 81 Regions Visited 17 Branch Regions 10 Pre-discovered Areas 6 | . . . 1 1 . . 1 1 1 . . . . . 1 . . Known Exits Taken 8 | . 1 . . . 1 1 1 1 1 1 . . . 1 . . . Unknown Exits Taken 7 | 1 . 1 1 1 . . . . . . . . 1 . 1 1 . Scrap Searched 13 | . . . . 1 . . 2 2 . 2 . . . . 5 1 . Spaces Dug 24 | . . . . . 13 9 . 1 . . . . . . . . 1 Terrain Destroyed 503 | . . 96 . . 109 76 . 1 . 8 58 . . 1 . 115 39 Melee 1 | . . . . . . . . 1 . . . . . . . . . Projectile 17 | . . . . . . 3 . . . . . . . 1 . 2 11 AOE 485 | . . 96 . . 109 73 . . . 8 58 . . . . 113 28 Actions | -11 -10 -10 -10 -9 -8 -7 -7 -7 -7 -6 -6 -6 -6 -5 -5 -5 -5 --------- Run | Scr Mat Min Exi Min Mat Fac Low Low Dat Pro Fac Was Fac Fac Upp Upp War Total 8187 | . 332 271 424 139 639 1509 535 738 83 583 528 460 119 83 539 253 952 Wait 478 | . 11 72 . . 97 23 2 1 . 48 66 50 10 5 21 4 68 Move 6808 | . 256 160 411 133 383 1302 511 699 83 490 367 404 108 74 492 213 722 Hop . | . . . . . . . . . . . . . . . . . . Pick Up 85 | . 5 3 4 3 24 28 1 6 . . 1 . . . 2 1 7 Fast Attach 85 | . 3 3 . 1 22 15 4 . . 12 4 3 . . 6 1 11 Attach 50 | . . 2 . . 14 7 1 . . 5 6 . . . 2 . 13 Detach 16 | . . 1 2 . 7 1 . . . 1 2 . . . 1 . 1 Swap 55 | . 5 3 3 . 10 15 2 9 . 1 1 1 . . 2 1 2 Drop 123 | . 11 5 4 2 23 38 5 6 . 9 2 . . . . . 18 Fire 394 | . 41 22 . . 56 80 9 11 . 16 78 2 1 4 13 23 38 Melee 18 | . . . . . 2 . . 3 . . . . . . . . 13 Ram . | . . . . . . . . . . . . . . . . . . Kick . | . . . . . . . . . . . . . . . . . . Crush . | . . . . . . . . . . . . . . . . . . Escape Stasis . | . . . . . . . . . . . . . . . . . . Rewire 73 | . . . . . 1 . . 3 . 1 1 . . . . 10 57 Trap 2 | . . . . . . . . . . . . . . . . . 2 Miscellaneous . | . . . . . . . . . . . . . . . . . . Route ------- -11/Scrapyard -10/Materials (discovered 2 exits: [*Mat] / *Min) -10/Mines (discovered 2 exits: [*Mat] / *Exi) -10/Exiles -9/Mines -8/Materials (discovered 3 exits: *Fac x3) -7/Factory (discovered 2 exits: *Low x2) -7/Lower Caves -7/Lower Caves -7/Data Miner -6/Proximity Caves -6/Factory -6/Waste -6/Factory -5/Factory (discovered 4 exits: *Upp x2 / Ext x2) -5/Upper Caves -5/Upper Caves (discovered 2 exits: [*Fac] / *War) -5/Warlord History --------- Turn | Location | Event 1 | -11/Scrapyard | Discovered new exit (range 0) 1 | -11/Scrapyard | Entered Materials 203 | -10/Materials | Identified exit to Mines 256 | -10/Materials | Discovered new exit (range 15) 364 | -10/Materials | Build established: Scavenger-Mutant 451 | -10/Materials | Entered Mines 490 | -10/Mines | Assembled infested the area 495 | -10/Mines | Assisted by a Guerilla fighting off Assembled 597 | -10/Mines | Core integrity fell below 50% 622 | -10/Mines | Destroyed 7 combat bots 684 | -10/Mines | Core integrity fell below 20% 731 | -10/Mines | Discovered new exit (range 7) 772 | -10/Mines | Deemed a non-threat by the Exiles lab entrance 773 | -10/Mines | Discovered new exit (range 5) 778 | -10/Mines | Entered Exiles 808 | -10/Exiles | Met 8R-AWN 825 | -10/Exiles | Met EX-HEX 927 | -10/Exiles | Met EX-DEC 935 | -10/Exiles | Learned location of Zion (-6) 1048 | -10/Exiles | Met EX-BIN 1058 | -10/Exiles | Aligned with FarCom system 1059 | -10/Exiles | Given EX-Vault access code 1082 | -10/Exiles | Opened EX-Vault 1090 | -10/Exiles | Found Field Lobotomy Kit 1092 | -10/Exiles | Found Firepult 1097 | -10/Exiles | Found Potential Leg 1099 | -10/Exiles | Found Potential Leg 1122 | -10/Exiles | Warned to stay clear of 0b10 Research branches 1186 | -10/Exiles | Discovered new exit (range 14) 1198 | -10/Exiles | Stole three prototypes: Potential Leg, Firepult, Field Lobotomy Kit 1198 | -10/Exiles | Entered Mines 1315 | -9/Mines | Discovered new exit (range 12) 1325 | -9/Mines | Received a Rocket Launcher from a helpful Derelict 1337 | -9/Mines | Entered Materials 1337 | -8/Materials | Evolved 4 slots: Propulsion x1, Utility x3 1615 | -8/Materials | Lost 8 parts (2p1n1u4w) 1848 | -8/Materials | Repaired Aerolev Unit 1887 | -8/Materials | Repaired Imp. Heat Sink 1945 | -8/Materials | Identified exit to Factory 2047 | -8/Materials | Entered Factory 2047 | -7/Factory | Evolved 2 slots: Propulsion x1, Utility x1 2049 | -7/Factory | FarCom data flow suspended 2284 | -7/Factory | Build established: Hauler-Mutant 2952 | -7/Factory | Fabricated B-48 Gladiator? 3363 | -7/Factory | Garrison activated, responded to threat 3559 | -7/Factory | Identified exit to Lower Caves 3851 | -7/Factory | Entered Lower Caves 4149 | -7/Lower Caves | Encountered a Warlord checkpoint 4246 | -7/Lower Caves | Learned Factory security intel 4388 | -7/Lower Caves | Discovered new exit (range 12) 4425 | -7/Lower Caves | Identified exit to Lower Caves 4451 | -7/Lower Caves | Spotted QS-U5A(f) 4453 | -7/Lower Caves | Encountered a Master Thief 4453 | -7/Lower Caves | Firepult stolen by Master Thief 4482 | -7/Lower Caves | Entered another Lower Caves area 4485 | -7/Lower Caves | Encountered a Warlord checkpoint 4627 | -7/Lower Caves | P-60 Hacker assimilated allied TP-J35(g) 4745 | -7/Lower Caves | Attacked by a delusional Derelict stockpiling parts 4911 | -7/Lower Caves | Found Prototype Device 5136 | -7/Lower Caves | Spotted AF-B5W(f) 5137 | -7/Lower Caves | Encountered a Master Thief 5146 | -7/Lower Caves | Destroyed AF-B5W(f) 5285 | -7/Lower Caves | Spotted HB-JVB(f) 5286 | -7/Lower Caves | Encountered a Master Thief 5287 | -7/Lower Caves | Assimilated HB-JVB(f) with FLK Orb 5301 | -7/Lower Caves | Discovered new exit (range 9) 5310 | -7/Lower Caves | Learned location of Extension (-5) 5349 | -7/Lower Caves | Identified exit to Data Miner 5350 | -7/Lower Caves | Entered Data Miner 5350 | -7/Data Miner | Accompanied by 1 ally 5350 | -7/Data Miner | Discovered new exit (range 6) 5372 | -7/Data Miner | Met Data Miner 5396 | -7/Data Miner | Learned location of Section 7 (-2) 5396 | -7/Data Miner | Acquired the access code to Warlord's prototype stash 5417 | -7/Data Miner | Received God Mode back door access code from Data Miner 5445 | -7/Data Miner | Identified exit to Proximity Caves 5446 | -7/Data Miner | Entered Proximity Caves 5446 | -6/Proximity Caves | Accompanied by 1 ally 5572 | -6/Proximity Caves | Escorted by Enhanced Grunt 5579 | -6/Proximity Caves | Attracted the attention of an 0b10 checkpoint 5724 | -6/Proximity Caves | Discovered new exit (range 13) 5738 | -6/Proximity Caves | Identified exit to Factory 5796 | -6/Proximity Caves | Identified Heart of Steel 5841 | -6/Proximity Caves | Spotted R9-A8S(f) 5841 | -6/Proximity Caves | Spotted 0L-XKP(f) 5842 | -6/Proximity Caves | Encountered a Master Thief 5842 | -6/Proximity Caves | Encountered a Master Thief 5844 | -6/Proximity Caves | Field Lobotomy Kit stolen by Master Thief 5846 | -6/Proximity Caves | Potential Leg stolen by Master Thief 5964 | -6/Proximity Caves | Spotted B-75 Beast 5971 | -6/Proximity Caves | Learned Factory emergency access door positions 6006 | -6/Proximity Caves | Rewired B-75 Beast 6018 | -6/Proximity Caves | Lost 4 parts (2n1u1w) 6040 | -6/Proximity Caves | Found Prototype Device 6040 | -6/Proximity Caves | Identified Exp. Thermal Shield 6103 | -6/Proximity Caves | Spotted 8R-22E(f) 6103 | -6/Proximity Caves | Spotted RN-DLC(f) 6104 | -6/Proximity Caves | Encountered a Master Thief 6104 | -6/Proximity Caves | Encountered a Master Thief 6107 | -6/Proximity Caves | Exp. Thermal Shield stolen by Master Thief 6111 | -6/Proximity Caves | Antimatter Reactor stolen by Master Thief 6177 | -6/Proximity Caves | Entered Factory 6177 | -6/Factory | Accompanied by 1 ally 6177 | -6/Factory | Evolved 2 slots: Utility x2 6428 | -6/Factory | Build established: Mutant 6789 | -6/Factory | Discovered new exit (range 5) 6846 | -6/Factory | Build established: Scavenger-Mutant 6907 | -6/Factory | Incoming investigation squad redirected 6930 | -6/Factory | Sucked down chute 6930 | -6/Factory | Entered Waste 6969 | -6/Waste | Warlord forces began an assault 6987 | -6/Waste | Spotted C-40 Crusher 6999 | -6/Waste | Spotted C-40 Crusher 7004 | -6/Waste | Allies destroyed C-40 Crusher 7050 | -6/Waste | Heart of Steel transformed into Warbot 7052 | -6/Waste | Spotted C-40 Crusher 7054 | -6/Waste | Allies destroyed C-40 Crusher 7055 | -6/Waste | Spotted C-40 Crusher 7061 | -6/Waste | Allies destroyed C-40 Crusher 7064 | -6/Waste | Spotted C-40 Crusher 7066 | -6/Waste | Allies destroyed C-40 Crusher 7084 | -6/Waste | Discovered new exit (range 16) 7517 | -6/Waste | Entered Factory 7517 | -6/Factory | Accompanied by 13 allies 7539 | -6/Factory | Spotted B-75 Beast 7545 | -6/Factory | Allies destroyed B-75 Beast 7638 | -6/Factory | Discovered new exit (range 4) 7660 | -6/Factory | Entered another Factory area 7660 | -5/Factory | Accompanied by 12 allies 7660 | -5/Factory | Evolved 2 slots: Propulsion x1, Utility x1 7702 | -5/Factory | Identified exit to Upper Caves 7702 | -5/Factory | Identified exit to Extension 7762 | -5/Factory | Entered Upper Caves 7762 | -5/Upper Caves | Accompanied by 12 allies 7839 | -5/Upper Caves | Learned location of Armory (-4) 7934 | -5/Upper Caves | Spotted B-75 Beast 7943 | -5/Upper Caves | Allies destroyed B-75 Beast 8141 | -5/Upper Caves | Spotted WP-HTF(f) 8144 | -5/Upper Caves | Encountered a Master Thief 8147 | -5/Upper Caves | Enh. Flexi-carbon Leg stolen by Master Thief 8147 | -5/Upper Caves | Allies destroyed WP-HTF(f) 8165 | -5/Upper Caves | Spotted 2M-20P(f) 8166 | -5/Upper Caves | Encountered a Master Thief 8169 | -5/Upper Caves | Enh. Flexi-carbon Leg stolen by Master Thief 8172 | -5/Upper Caves | Spotted K2-NBV(f) 8173 | -5/Upper Caves | Encountered a Master Thief 8175 | -5/Upper Caves | Imp. Energy Well stolen by Master Thief 8248 | -5/Upper Caves | Spotted TA-9W0(f) 8251 | -5/Upper Caves | Encountered a Master Thief 8252 | -5/Upper Caves | Imp. Propulsion Shielding stolen by Master Thief 8378 | -5/Upper Caves | Discovered new exit (range 10) 8392 | -5/Upper Caves | Learned Factory trap positions 8417 | -5/Upper Caves | Entered another Upper Caves area 8417 | -5/Upper Caves | Accompanied by 7 allies 8421 | -5/Upper Caves | Discovered new exit (range 12) 8451 | -5/Upper Caves | Learned Factory trap positions 8477 | -5/Upper Caves | Attracted the attention of an 0b10 outpost 8546 | -5/Upper Caves | Attracted the attention of an 0b10 checkpoint 8644 | -5/Upper Caves | Spotted B-75 Beast 8658 | -5/Upper Caves | Destroyed B-75 Beast 8753 | -5/Upper Caves | Discovered new exit (range 12) 8788 | -5/Upper Caves | Entered Warlord 8788 | -5/Warlord | Accompanied by 3 allies 8854 | -5/Warlord | System corruption reached 10% 8892 | -5/Warlord | System corruption cleaned by Quarantine Array 9071 | -5/Warlord | Found Prototype Device 9071 | -5/Warlord | Identified Minesniffer Drone Bay 9079 | -5/Warlord | Found Minesniffer Drone Bay 9081 | -5/Warlord | Found Minesniffer Drone Bay 9084 | -5/Warlord | Found Minesniffer Drone Bay 9252 | -5/Warlord | Warlord's base attacked by MAIN.C 9258 | -5/Warlord | Met Warlord 9274 | -5/Warlord | Opened Warlord's prototype stash 9287 | -5/Warlord | Found Prototype Device 9287 | -5/Warlord | Identified System Purifier 9581 | -5/Warlord | Found Prototype Energy Cannon 9581 | -5/Warlord | Identified Vortex Driver 9584 | -5/Warlord | Found Vortex Driver 9595 | -5/Warlord | Found Prototype Energy Gun 9597 | -5/Warlord | Found Prototype Energy Gun 9602 | -5/Warlord | Warlord forces counterattacked 9818 | -5/Warlord | Attacked by Warlord forces 9818 | -5/Warlord | Spotted R2-0SJ(K) 9818 | -5/Warlord | Spotted B5-R2P(K) 9830 | -5/Warlord | Destroyed B5-R2P(K) 9858 | -5/Warlord | Identified Vortex Rifle (x2) 9883 | -5/Warlord | Build established: Hauler-Mutant 9907 | -5/Warlord | Lost 8 parts (2p2n1u3w) 9962 | -5/Warlord | Core integrity fell below 50% 9983 | -5/Warlord | Lost 12 parts (3n5u4w) 9984 | -5/Warlord | Core integrity fell below 20% 9996 | -5/Warlord | Destroyed by Warlord with Compact HERF Cannon Last Messages --------------- 09952_ Force Rifle destroyed. 09952_ System corrupted: Mak. Laser targeting data glitched. 09955_ Penetrated by HV Slug. 09955_ Minesniffer Drone knocked back. 09955_ Minesniffer Drone destroyed. 09955_ Minesniffer Drone suffers critical hit. 09955_ Minesniffer Drone destroyed. 09955_ Knocked back. 09959_ System corrupted: Mak. Laser rejected. 09961_ Knocked back. 09963_ Penetrated by HV Slug. 09963_ HV Slug penetrates Wall. 09966_ Dropped EM Pulse Cannon. 09967_ Dropped Mak. Armor Plating. 09967_ Penetrated by Slug. 09967_ Dropped Lrg. Storage Unit. 09975_ System corrupted: IFF burst signal emitted. 09993_ Penetrated by HV Slug. 09993_ HV Slug penetrates Door. 09995_ Penetrated by Slug. Map ----- +----------------------------------------------------+ | | | | | | | | | | | | | | | | | | | | | | | | | | | | | ?????????????????????????????????????????????????? | | ?????????????????????????????????????????????????? | | ?????????????????????????????????????????????????? | | ?????????????????????????????????????????????????? | | ?????????????????????????????????????????????????? | | ?????????????????????????????????????????????????? | | ?????????????????????????????????????????????????? | | ?????????????????????????????????????????????????? | | ?????????????????????##??????????????????????????? | | ????????????????######;###???????????????????????? | | ????????????????# #####???????????????????? | | ????????????????# W@ +???????????????????? | | ????????????????# !### #???????????????????? | | ????????????????# !!]#?# #???????????????????? | | ????????????????# [!!## #???????????????????? | | ???????????????## ### #???????????????????? | | ############### #?# #???????????????????? | | #"""""" "" ""## #?# #???????????????????? | | #" # #?# #???????????????????? | | ?# [# ###"### ###?????????????????? | | ?# = ! ! #?????????????????? | | ?# ^[%=%[ =% +?????????????????? | | ##" [ === = GGn ! #?????????????????? | | " !%[ G ######?????????????????? | | ##" == ! # #??????????????????????? | | ##""" [%[ #### ################+######? | | ########## #??# #? | | ##=! !! # #??# ## | | ##= #??# """" """" # | | ## #??# """""" """""" #? | | ##== ! #??# " "" " " "" " #### ## | | ##==!!* # #??# # | | ###############??# # | | #?????????######?# ########## ^ # | | ########### ### #????????# ^ | | ## #?????########## | +----------------------------------------------------+ Best States ------------- Heat Dissipation 97 Energy Generation 21 Energy Capacity 925 Matter Stores 300 Matter Capacity 300 Sight Range 16 Robot Scan Range 13 Terrain Scan Density 10 Armor Coverage 875 Resistance: TH 30 Resistance: EM 15 Propulsion Shielding 66 Evasion (%) 54 Target Analysis 5 Offensive Hacking 10 Defensive Hacking 10 Item Schematics ----------------- Thermal Shield | -7/Factory | Hacked Hvy. Phase Cannon | -7/Factory | Hacked Combat Drone Bay | -7/Data Miner | Free Lgt. Regenerative Plating | -7/Data Miner | Free Exp. Cesium-ion Thruster | -7/Data Miner | Free Exp. Terrain Scanner | -7/Data Miner | Free Triangulator | -7/Data Miner | Free Mni. Smartbomb Launcher | -7/Data Miner | Free Exp. ECM Suite | -7/Data Miner | Free Robot Schematics ------------------ S-27 Virus | -7/Factory | Hacked G-50 Soldier | -7/Data Miner | Free G-67 Veteran | -7/Data Miner | Free L-41 Fighter | -7/Data Miner | Free X-72 Disruptor | -7/Data Miner | Free H-66 Slayer | -7/Data Miner | Free I-36 Angel | -7/Data Miner | Free Fabricated ------------ B-48 Gladiator | x3 | -7/Factory | Preloaded Alien Tech Used ----------------- None Achievements -------------- None Challenges ------------ None Game ------ Seed GaussHardcellAutocannon Manual? 0 Play Time 01:28:59 Cumulative 313.9 hours Start 2020.06.13 @ 23:32:22 End 2020.06.14 @ 00:58:07 Sessions 1 Manual Loads 0 Difficulty Rogue Special Mode None Game No. 340 Rogue 340 Adventurer 0 Explorer 0 Win Type - Total 29 Types 17/3/2/1/2/1/3 Lore% 93 Gallery% 87 Achievement% 78 Wizard Run 0 Options --------- ASCII 0 Keyboard 0 Movement Arrows Keybinds 0 Fullscreen 2 Font 18/SmallcapsGlow Map View 76x50 Tactical HUD 1 Map Filters NONE Filters NONE Steam 1 RUN: 38a0e424-dad6-4bb4-9470-0718fcce0290